fUSD/lending_fUSD_20241026
["ID","MTS","AMOUNT","RATE_DAILY","PERIOD"]
[340866611,1729959908907,179.59,0.00015,2]
[340866612,1729959908929,800.0,0.00015,2]
[340866613,1729959908952,800.0,0.00015,2]
[340866614,1729959908974,800.0,0.00015,2]
[340866615,1729959908996,800.0,0.00015,2]
[340866616,1729959909019,800.0,0.00015,2]
[340866617,1729959909038,800.0,0.00015,2]
[340866618,1729959909066,800.0,0.00015,2]
[340866619,1729959909087,800.0,0.00015,2]
[340866620,1729959909115,1031000.0,0.00015,2]
[340866621,1729959909143,4000.0,0.00015,2]
[340866622,1729959909168,9982124.69927554,0.00015,2]
[340866623,1729959910218,550.17082055,0.00044164,5]
[340866624,1729959926172,1944.09996996,0.00044164,5]
[340866625,1729959935857,-150.0,0.00035,120]
[340866626,1729959936026,-150.0,0.00035,120]
[340866627,1729959936083,-150.0,0.00035,120]
[340866628,1729959936194,-150.0,0.00035,120]
[340866629,1729959936250,-150.0,0.00035,120]
[340866630,1729959936314,-150.0,0.00035,120]
[340866631,1729959936370,-150.0,0.00035,120]
[340866632,1729959936407,-150.0,0.00035,120]
[340866633,1729959936479,-150.0,0.00035,120]
[340866634,1729959936522,-150.0,0.00035,120]
[340866635,1729959936561,-150.0,0.00035,120]
[340866636,1729959936596,-150.0,0.00035,120]
[340866637,1729959936633,-150.0,0.00035,120]
[340866638,1729959936672,-150.0,0.00035,120]
[340866639,1729959936718,-150.0,0.00035,120]
[340866640,1729959936754,-150.0,0.00035,120]
[340866641,1729959936788,-150.0,0.00035,120]
[340866642,1729959936831,-150.0,0.00035,120]
[340866643,1729959936880,-127.613586,0.00035,120]
[340866644,1729959936901,-22.386414,0.00044098,2]
[340866645,1729959936927,-138.75175157,0.00044098,2]
[340866646,1729959956200,223560.3397528,0.000159,2]
[340866647,1729959960082,956.15013593,0.00044164,5]
[340866648,1729959965745,854.41191503,0.00044164,5]
[340866649,1729959985523,579.54944876,0.00044164,5]
[340866650,1729959990248,5123.51309103,0.00044164,120]
[340866651,1729960009838,150.0,0.00015,2]
[340866652,1729960009859,100.0,0.00015,2]
[340866653,1729960010950,50.0,0.00017,2]
[340866654,1729960010970,150.0,0.00017,2]
[340866655,1729960010992,100.0,0.00017,2]
[340866656,1729960012013,150.0,0.00019,2]
[340866657,1729960012033,150.0,0.00019,2]
[340866658,1729960012054,50.0,0.00019,2]
[340866659,1729960018077,-150.0,0.00021,2]
[340866660,1729960018247,-150.0,0.00021,2]
[340866661,1729960018330,-100.0,0.00021,2]
[340866662,1729960033409,150.0,0.00022,2]
[340866663,1729960033429,272.46057285,0.00022,2]
[340866664,1729960071621,11859.48938807,0.00044164,2]
[340866665,1729960082749,880999.37765504,0.00015,2]
[340866682,1729960232517,-148.86170117,0.00022,2]
[340866683,1729960232527,-323.47829516,0.00025,7]
[340866692,1729960238291,-849.51027057,0.00025,7]
[340866693,1729960238303,-3728.31681027,0.00025,7]
[340866694,1729960238311,-322.28775988,0.00031,5]
[340866695,1729960238320,-4076.0801969,0.0003409,3]
[340866696,1729960238329,-228.77698395,0.00044164,2]
[340866697,1729960238765,-750.0,0.00044164,2]
[340866715,1729960240291,-485.09187382,0.00044164,2]
[340866716,1729960240303,-2094.9,0.00044164,2]
[340866717,1729960240315,-1337.575092,0.00044164,2]
[340866718,1729960240346,-17130.00793817,0.00044164,2]
[340866719,1729960240403,-2217.76378189,0.00044164,2]
[340866720,1729960240461,-20685.37614258,0.00044164,2]
[340866833,1729960243572,-1591.4825016,0.00044164,2]
[340866837,1729960246395,-431.2408736,0.00044164,2]
[340866838,1729960246543,-218.44667614,0.00044164,2]
[340866841,1729960406436,150.0,0.00015342,2]
[340866842,1729960406458,7.82,0.00015342,2]
[340866843,1729960681234,150.0,0.00019725,2]
[340866844,1729960681256,150.0,0.00019725,2]
[340866852,1729961431430,-262.0,0.000259,2]
[340866853,1729961431439,-171.45122948,0.00043405,7]
[340866854,1729961431450,-370.19261992,0.00043405,7]
[340866855,1729961431542,-516.31456853,0.00043405,7]
[340866856,1729961431612,-2e-08,0.00043405,7]
[340866857,1729961431627,-1508.50158205,0.00043405,7]
[340866858,1729961431637,-2632.16,0.00043405,7]
[340866859,1729961431647,-1803.65796,0.00043506,2]
[340866860,1729961431657,-6585.1631,0.00043725,2]
[340866861,1729961431666,-1600.2069,0.00043925,2]
[340866862,1729961431675,-4854.2003,0.00043925,2]
[340866863,1729961431685,-199.8,0.00044015,69]
[340866864,1729961431696,-369.92,0.00044028,30]
[340866865,1729961431706,-62321.41180795,0.00044038,2]
[340866866,1729961431717,-1259.58718006,0.00044038,2]
[340866867,1729961431728,-4424.59768256,0.00044038,2]
[340866868,1729961431739,-429.39890584,0.00044038,2]
[340866869,1729961431764,-124524.47510314,0.00044038,2]
[340866871,1729961431773,-214.01499933,0.00044038,5]
[340866873,1729961431783,-534.465177,0.00044038,2]
[340866874,1729961431793,-207.89247207,0.00044038,5]
[340866876,1729961431802,-5374.99585608,0.00044038,2]
[340866878,1729961431811,-1051.3,0.00047635,2]
[340866880,1729961431821,-200.0,0.00047928,2]
[340866882,1729961431830,-150.0,0.00048121,7]
[340866884,1729961431839,-250.0,0.00048306,120]
[340866886,1729961431848,-250.0,0.00048587,120]
[340866888,1729961431858,-150.0,0.00049219,2]
[340866890,1729961431867,-23900.0,0.00049283,2]
[340866892,1729961431876,-156.77,0.00049522,2]
[340866894,1729961431886,-891.26,0.00049662,120]
[340866896,1729961431895,-571.15,0.00049846,2]
[340866898,1729961431904,-873.61138423,0.0005,120]
[340866900,1729961431913,-1310.0,0.0005,10]
[340866902,1729961431922,-4247.86,0.00050052,2]
[340866904,1729961431932,-500.0,0.00052025,2]
[340866905,1729961431942,-571.15,0.00052109,2]
[340866906,1729961431951,-155.61,0.00053282,2]
[340866907,1729961431961,-500.0,0.00053395,2]
[340866908,1729961431970,-250.0,0.00053651,120]
[340866909,1729961431979,-571.15,0.00054373,2]
[340866910,1729961431989,-571.15,0.00056637,2]
[340866911,1729961431998,-156.77,0.00057775,2]
[340866912,1729961432007,-22024.48417658,0.00058,30]
[340866913,1729961432017,-189.30058574,0.0005855,28]
[340866914,1729961432026,-1000.0,0.0005877,120]
[340866915,1729961432036,-571.15,0.00058901,2]
[340866916,1729961432046,-1109.3,0.00058905,2]
[340866917,1729961432055,-597.55,0.00059332,2]
[340866918,1729961432065,-152.0,0.00059667,3]
[340866919,1729961432075,-192.74,0.00059929,2]
[340866920,1729961432085,-166.83,0.00059929,120]
[340866921,1729961432094,-2090.5300603,0.0006,15]
[340866922,1729961432104,-5000.0,0.0006,120]
[340866923,1729961432113,-5000.0,0.0006,120]
[340866924,1729961432124,-5000.0,0.0006,120]
[340866925,1729961432133,-5000.0,0.0006,120]
[340866926,1729961432143,-5000.0,0.0006,120]
[340866927,1729961432151,-5000.0,0.0006,120]
[340866928,1729961432161,-5000.0,0.0006,120]
[340866929,1729961432171,-4000.0,0.0006,120]
[340866930,1729961432180,-166.99,0.00060224,2]
[340866931,1729961432190,-199.801,0.00060511,120]
[340866932,1729961432200,-571.15,0.00061165,2]
[340866933,1729961432209,-167.53755554,0.00061589,120]
[340866934,1729961432218,-250.0,0.00062,120]
[340866935,1729961432228,-167.53755554,0.00062384,120]
[340866936,1729961432237,-1047.66452342,0.000626,113]
[340866937,1729961432247,-192.74,0.00062925,2]
[340866938,1729961432257,-167.53755554,0.00063205,120]
[340866939,1729961432266,-571.15,0.00063429,2]
[340866940,1729961432276,-260.0,0.00064,120]
[340866941,1729961432285,-1789.89,0.00064,38]
[340866942,1729961432295,-162.38,0.00064697,120]
[340866943,1729961432304,-622.9826606,0.00065,120]
[340866944,1729961432314,-571.15,0.00065693,2]
[340866945,1729961432324,-192.74,0.00065922,2]
[340866946,1729961432333,-156.77,0.00066029,2]
[340866947,1729961432343,-1000.0,0.00066116,120]
[340866948,1729961432354,-1051.3,0.00066689,30]
[340866949,1729961432363,-2693.05063472,0.00067,120]
[340866950,1729961432373,-18722.14866525,0.00067,120]
[340866953,1729961437457,-1277.85133475,0.00067,120]
[340866954,1729961437467,-203.03084534,0.000673,39]
[340866955,1729961437477,-500.0,0.00067399,120]
[340866956,1729961437488,-447.91210802,0.00067399,120]
[340866957,1729961437497,-500.0,0.00067399,120]
[340866958,1729961437506,-9814.17347718,0.000674,120]
[340866959,1729961437887,-16932.32639603,0.000674,120]
[340866960,1729961438050,-17021.53766355,0.000674,120]
[340866961,1729961438061,-16153.68747997,0.000674,120]
[340866962,1729961438107,-52170.56524385,0.000674,120]
[340866963,1729961438116,-7459.7333948,0.000674,120]
[340866964,1729961438125,-256.63394021,0.00067565,51]
[340866965,1729961438134,-256.6339402,0.0006757,51]
[340866966,1729961438142,-256.6339402,0.00067575,51]
[340866967,1729961438151,-76025.6885554,0.00067645,16]
[340866968,1729961438161,-2168.53797851,0.00067646,16]
[340866977,1729961439522,-4742.8882538,0.00067646,16]
[340866978,1729961439532,-6911.42623231,0.00067655,16]
[340866979,1729961439542,-9031.06165647,0.00067661,16]
[340866980,1729961439638,-4791.79080813,0.00067661,16]
[340866981,1729961439647,-1925.03227075,0.00067665,16]
[340866982,1729961439658,-12400.605824,0.00067665,16]
[340866983,1729961439701,-0.71308874,0.00067665,16]
[340866984,1729961439750,-3293.63795506,0.00067665,16]
[340866985,1729961439762,-1996.912801,0.00067665,16]
[340866986,1729961439774,-617.779,0.00067665,16]
[340866987,1729961439786,-1004.796453,0.00067665,16]
[340867130,1729961442421,-3427.618579,0.00067665,16]
[340867131,1729961442583,-85915.72374545,0.00067665,16]
[340867132,1729961442595,-147466.74824602,0.00067665,14]
[340867133,1729961442746,-500.0,0.00067399,120]
[340867134,1729961442758,-500.0,0.00067399,120]
[340867135,1729961442768,-208.15248109,0.00067399,120]
[340867136,1729961442777,-500.0,0.00067399,120]
[340867137,1729961442787,-500.0,0.00067399,120]
[340867138,1729961442799,-216.63129151,0.00067665,31]
[340867140,1729961442809,-3595.2162274,0.00067665,14]
[340867143,1729961445583,-100000.0,0.00043938,2]
[340867144,1729961445594,-500.0,0.00067399,120]
[340867145,1729961445604,-500.0,0.00067399,120]
[340867146,1729961445613,-500.0,0.00067399,120]
[340867147,1729961445623,-500.0,0.00067399,120]
[340867148,1729961445631,-500.0,0.00067399,120]
[340867149,1729961445641,-9979.63549288,0.00067665,14]
[340867163,1729961448022,150.0,0.00017433,2]
[340867165,1729961502240,150.0,0.00015342,2]
[340867166,1729961502260,15.36,0.00015342,2]
[340867167,1729961815448,150.0,0.00015,2]
[340867168,1729961815570,100.0,0.00015,2]
[340867169,1729961816636,50.0,0.00017,2]
[340867170,1729961816658,150.0,0.00017,2]
[340867171,1729961816680,100.0,0.00017,2]
[340867172,1729961817713,160.65298422,0.00019,2]
[340867173,1729961817736,150.0,0.00019,2]
[340867174,1729961817758,39.34701578,0.00019,2]
[340867176,1729962065480,150.0,0.00015342,2]
[340867177,1729962065501,11.62,0.00015342,2]
[340867178,1729962405107,-400.0,0.00021,2]
[340867179,1729962405132,-2482.77242253,0.000298,2]
[340867180,1729962624787,158.79,0.00015342,2]
[340867187,1729962631676,-151.0,0.0003,120]
[340867188,1729962631687,-135.18192272,0.00030448,2]
[340867189,1729962631734,-468.78260722,0.00030448,2]
[340867190,1729962631743,-165.36,0.00030548,2]
[340867191,1729962631752,-603.96452993,0.00033238,2]
[340867192,1729962631761,-603.96452993,0.00036028,2]
[340867193,1729962631770,-160.56,0.00036128,30]
[340867194,1729962631780,-162.4,0.00040653,2]
[340867195,1729962631789,-1055.72044696,0.00040653,2]
[340867196,1729962631801,-2390.85955304,0.00040653,2]
[340867197,1729962631810,-4119.43476751,0.000413,2]
[340867198,1729962631821,-332.82649927,0.000413,2]
[340867199,1729962631832,-3294.98109314,0.000413,2]
[340867200,1729962631849,-14002.35691972,0.000413,2]
[340867201,1729962631907,-409.07558025,0.000413,2]
[340867211,1729962637658,-500.0,0.00041299,31]
[340867212,1729962637668,-11.55914245,0.00041299,31]
[340867213,1729962637865,-488.44085755,0.00041299,31]
[340867214,1729962637877,-184.00717656,0.00041299,31]
[340867215,1729962637886,-186.80196589,0.00041299,31]
[340867400,1729962639672,-148.43138815,0.00041299,31]
[340867404,1729962639681,-1190.15110793,0.000413,2]
[340867414,1729962639727,-479711.05173218,0.000413,2]
[340867416,1729962639737,-500.0,0.000413,30]
[340867418,1729962639746,-200.85683739,0.000416,2]
[340867420,1729962639754,-1159.59,0.00041877,2]
[340867422,1729962639763,-150.0,0.00042099,4]
[340867423,1729962639772,-150.16,0.00042354,2]
[340867425,1729962639781,-1000.0,0.00042393,2]
[340867427,1729962639790,-162.64,0.00042522,120]
[340867429,1729962639799,-179.75407647,0.0004258,2]
[340867431,1729962639808,-97020.6578498,0.0004259,8]
[340867433,1729962639817,-500.0,0.00042796,2]
[340867434,1729962639826,-2500.0,0.00043,2]
[340867435,1729962639835,-192.74,0.00043155,2]
[340867436,1729962639845,-250.0,0.00043237,120]
[340867437,1729962639956,-2850.0,0.00043258,2]
[340867438,1729962639965,-259.25,0.000434,2]
[340867439,1729962639975,-150.0,0.000435,2]
[340867440,1729962639984,-204.46911823,0.000437,15]
[340867441,1729962639993,-280.34,0.00043908,2]
[340867442,1729962640002,-10298.69975609,0.00043928,9]
[340867484,1729962642767,-6050.0648343,0.00041299,2]
[340867536,1729963021697,150.0,0.00019725,2]
[340867537,1729963021717,150.0,0.00019725,2]
[340867538,1729963022432,150.0,0.00021484,2]
[340867539,1729963022452,150.0,0.00021484,2]
[340867540,1729963022471,120.0,0.00021484,2]
[340867541,1729963154287,156.73,0.00015342,2]
[340867543,1729963188664,161.8,0.00019178,2]
[340867544,1729963501696,207.0,0.00044056,120]
[340867545,1729963508444,150.0,0.00015,2]
[340867546,1729963508467,150.0,0.00015,2]
[340867547,1729963508489,150.0,0.00015,2]
[340867548,1729963508519,150.0,0.00015,2]
[340867549,1729963508540,150.0,0.00015,2]
[340867550,1729963508566,150.0,0.00015,2]
[340867551,1729963508588,150.0,0.00015,2]
[340867552,1729963508610,150.0,0.00015,2]
[340867553,1729963508636,150.0,0.00015,2]
[340867554,1729963508675,49681.47,0.00015,2]
[340867555,1729963508704,600.0,0.00015,2]
[340867556,1729963508749,50000.0,0.00015,2]
[340867557,1729963508785,50000.0,0.00015,2]
[340867558,1729963508819,50000.0,0.00015,2]
[340867559,1729963508847,50000.0,0.00015,2]
[340867560,1729963508876,50000.0,0.00015,2]
[340867561,1729963508904,50000.0,0.00015,2]
[340867562,1729963508930,50000.0,0.00015,2]
[340867563,1729963508956,50000.0,0.00015,2]
[340867564,1729963508999,50000.0,0.00015,2]
[340867565,1729963509037,50000.0,0.00015,2]
[340867566,1729963509066,49841.21,0.00015,2]
[340867567,1729963509094,50000.0,0.00015,2]
[340867568,1729963509124,288449.0009116,0.00015,2]
[340867569,1729963512548,150.0,0.00025,2]
[340867570,1729963512569,150.0,0.00025,2]
[340867571,1729963512589,150.0,0.00025,2]
[340867572,1729963512611,150.0,0.00025,2]
[340867573,1729963512632,150.0,0.00025,2]
[340867574,1729963512652,150.0,0.00025,2]
[340867575,1729963512673,167.70042364,0.00025,2]
[340867576,1729963512694,150.0,0.00025,2]
[340867577,1729963512718,150.0,0.00025,2]
[340867578,1729963520340,5765.92545413,9e-05,2]
[340867579,1729963530482,10523.23307056,0.000101,2]
[340867580,1729963542103,50000.0,0.0002,2]
[340867581,1729963542127,16145.58000737,0.0002,2]
[340867582,1729963544402,-50000.0,0.00025,2]
[340867584,1729963556326,150.0,0.000159,2]
[340867585,1729963556347,150.0,0.000159,2]
[340867586,1729963556368,150.0,0.000159,2]
[340867587,1729963556388,150.0,0.000159,2]
[340867588,1729963556412,33554.88914412,0.000159,2]
[340867589,1729963586461,299.53084851,0.00014973,2]
[340867590,1729963586485,47.62542191,0.00014973,2]
[340867591,1729963593609,500.08214108,0.00014973,2]
[340867592,1729963600712,1290.38796613,0.00012666,2]
[340867593,1729963621150,250.0,0.00015,2]
[340867594,1729963622222,300.0,0.00017,2]
[340867595,1729963623318,350.0,0.00019,2]
[340867596,1729963624414,400.0,0.00021,2]
[340867597,1729963633716,46861.90447088,0.00022,2]
[340867598,1729963668900,162.53382216,0.00021,4]
[340867599,1729963668924,16575.95506321,0.00021,4]
[340867601,1729963673905,-50000.0,0.00022,2]
[340867602,1729963674637,-50000.0,0.00022,2]
[340867603,1729963675301,-50000.0,0.00022,2]
[340867604,1729963675913,-50000.0,0.00022,2]
[340867605,1729963676412,605.59232068,0.00012579,2]
[340867606,1729963676590,-50000.0,0.00022,2]
[340867607,1729963677218,-50000.0,0.00022,2]
[340867608,1729963677982,-16861.29221922,0.00022,2]
[340867609,1729963678005,-200.85683739,0.000249,2]
[340867610,1729963678030,-150.0,0.00024949,2]
[340867611,1729963678052,-32787.85094339,0.0002495,2]
[340867612,1729963678232,20120.36947298,0.00018,2]
[340867613,1729963678721,-630.8633113,0.00022,5]
[340867614,1729963678748,-25841.33726065,0.0002495,2]
[340867615,1729963678772,-4726.08220576,0.00025,2]
[340867616,1729963678796,-996.58904221,0.00026,2]
[340867617,1729963678819,-981.88477265,0.0003121,2]
[340867618,1729963678841,-16823.24340743,0.0003143,4]
[340867619,1729963679637,-1735.68553374,0.0003143,4]
[340867620,1729963679661,-48264.31446626,0.00032,2]
[340867621,1729963680516,750.0,0.0001,2]
[340867622,1729963680545,-42385.99553374,0.00032,2]
[340867623,1729963683372,7614.00446626,0.00015,2]
[340867624,1729963683400,1424.85007257,0.00015,2]
[340867625,1729963683424,413916.67786526,0.00015,2]
[340867630,1729963698130,150.0,0.0001439,2]
[340867631,1729963698151,270.0,0.0001439,2]
[340867632,1729963698173,677.13768122,0.0001439,2]
[340867633,1729963705093,-300.00450362,0.00022,12]
[340867634,1729963705116,-49699.99549638,0.00023922,2]
[340867635,1729963705388,101959.11983141,0.0002,2]
[340867636,1729963707181,-47641.6267594,0.00023922,2]
[340867637,1729963707204,-302.10176374,0.00024,7]
[340867638,1729963707227,-400.61933461,0.0002421,2]
[340867639,1729963707249,-1228.09414435,0.0002425,2]
[340867640,1729963707270,-336.48690511,0.0002442,2]
[340867641,1729963707294,-91.07109279,0.0003121,2]
[340867642,1729963707931,-879.1571328,0.0003121,2]
[340867643,1729963707955,-5158.75589708,0.000379,2]
[340867644,1729963707978,-4400.29562745,0.0004,30]
[340867645,1729963708001,-11595.08264853,0.00042,2]
[340867646,1729963708024,-27966.70869414,0.0004349,2]
[340867647,1729963708922,-14759.05009313,0.0004349,2]
[340867648,1729963708947,-150.0,0.000435,2]
[340867649,1729963708971,-424.02420919,0.00043635,2]
[340867650,1729963708994,-428.25568314,0.00043937,2]
[340867651,1729963709018,-150.0,0.00044,57]
[340867652,1729963709041,-293.96520108,0.00045,120]
[340867653,1729963709064,-10567.62777119,0.00045,120]
[340867654,1729963709088,-23227.07704227,0.00045,2]
[340867655,1729963709750,-50000.0,0.00045,2]
[340867659,1729963730382,-616.82727023,0.00022,2]
[340867660,1729963737769,-4876.60121384,0.000232,2]
[340867666,1729963806298,150.0,0.00017433,2]
[340867694,1729963831929,-252.8748098,0.0002594,2]
[340867696,1729963831939,-2422.79854954,0.00026,2]
[340867697,1729963832001,-345.20479722,0.00026,2]
[340867698,1729963832050,-1656.6277757,0.00026,2]
[340867702,1729963837838,-9.01887754,0.00026,2]
[340867703,1729963837851,-517.04997439,0.0002604,2]
[340867704,1729963837863,-198.47,0.00044,2]
[340867705,1729963837874,-3730.82635583,0.00044,2]
[340867706,1729963838148,-3165.17631129,0.00044,2]
[340867707,1729963838166,-34415.47508483,0.00044,2]
[340867867,1729963839790,-1186.54096388,0.00044,2]
[340867870,1729963839804,-1610.225,0.00044,2]
[340867872,1729963839817,-1004.955,0.00044,2]
[340867882,1729963839901,-361370.77588417,0.00044,2]
[340867884,1729963839912,-2758.66640775,0.00044058,2]
[340867886,1729963839922,-999.999999,0.00044058,2]
[340867888,1729963839932,-31644.56737099,0.00044058,2]
[340867890,1729963839942,-5086.70738274,0.00044058,2]
[340867893,1729963839952,-500.0,0.00044773,2]
[340867895,1729963839963,-239.93699021,0.0004479,2]
[340867897,1729963839974,-200236.00697776,0.000448,120]
[340867899,1729963839984,-205.86521344,0.0004489,120]
[340867901,1729963839994,-433.0,0.0004499,2]
[340867903,1729963840005,-619.64003295,0.00045,120]
[340867905,1729963840016,-165.36,0.00045753,2]
[340867907,1729963840027,-604.0,0.000461,5]
[340867909,1729963840037,-1000.0,0.00046142,2]
[340867912,1729963840050,-319.47138642,0.000465,120]
[340867914,1729963840062,-462.56,0.00046641,2]
[340867916,1729963840073,-159.11018283,0.00047,60]
[340867918,1729963840084,-203.48510959,0.00047,120]
[340867920,1729963840094,-181.68807877,0.0004748,115]
[340867922,1729963840106,-21922.32860029,0.000475,2]
[340867924,1729963840119,-5174.98436827,0.000476,2]
[340867926,1729963840131,-361.18,0.00048607,2]
[340867929,1729963840143,-462.56,0.00048905,2]
[340867931,1729963840155,-14979.82368207,0.00049,2]
[340867933,1729963840168,-5000.0,0.00049,2]
[340867988,1729963842863,-836.0538161,0.00049,2]
[340867989,1729963842877,-8578.23449415,0.00049345,2]
[340867990,1729963842923,-2734.9,0.00049345,2]
[340867991,1729963842983,-12586.86550585,0.00049345,2]
[340867992,1729963842995,-156.32397338,0.000495,120]
[340867993,1729963843008,-7730.70525107,0.0005,60]
[340867994,1729963843020,-200.0,0.0005,2]
[340867995,1729963843029,-351.39578067,0.0005,30]
[340867996,1729963843040,-800.0,0.00050822,120]
[340867997,1729963843051,-1196.35910999,0.0005089,120]
[340867998,1729963843064,-415.19891996,0.0005089,120]
[340867999,1729963843078,-302.0,0.0005089,120]
[340868000,1729963843955,-8797.07865572,0.0005089,120]
[340868001,1729963843964,-462.56,0.00051169,2]
[340868002,1729963843974,-219.843,0.00051368,92]
[340868003,1729963843983,-19334.8925,0.00051553,2]
[340868004,1729963843992,-197.28135766,0.00051666,60]
[340868005,1729963844002,-150.0,0.00051915,7]
[340868006,1729963844011,-1159.59,0.00052721,2]
[340868007,1729963844021,-250.0,0.00052753,120]
[340868008,1729963844031,-462.56,0.00053433,2]
[340868009,1729963844040,-150.16,0.00053542,2]
[340868010,1729963844049,-199.9,0.00053722,120]
[340868011,1729963844059,-2850.0,0.00053964,2]
[340868012,1729963844068,-500.0,0.0005445,2]
[340868013,1729963844079,-1252.0,0.00054574,120]
[340868014,1729963844089,-500.0,0.00054795,120]
[340868015,1729963844098,-6113.2970396,0.000549,120]
[340868016,1729963844108,-247.69936085,0.00054999,31]
[340868017,1729963844118,-13213.91655428,0.00055,120]
[340868018,1729963844127,-73762.41197852,0.00055,15]
[340868019,1729963844201,-9827.58802148,0.00055,15]
[340868020,1729963844211,-11873.41569335,0.00055,30]
[340868026,1729963845969,-320.97010265,0.00043958,2]
[340868027,1729963845980,-38759.78680432,0.00055,30]
[340868028,1729963845990,-151.0,0.00055,120]
[340868029,1729963846000,-151.0,0.00055,120]
[340868030,1729963846009,-151.0,0.00055,120]
[340868031,1729963846018,-151.0,0.00055,120]
[340868032,1729963846028,-151.0,0.00055,120]
[340868033,1729963846038,-1453.385226,0.00055,120]
[340868034,1729963846047,-1453.385226,0.00055,120]
[340868035,1729963846057,-151.0,0.00055,120]
[340868036,1729963846066,-151.0,0.00055,120]
[340868037,1729963846076,-2500.0,0.00055402,2]
[340868038,1729963846085,-462.56,0.00055697,2]
[340868039,1729963846095,-186.0,0.00055796,2]
[340868040,1729963846105,-414.03,0.00055822,2]
[340868041,1729963846115,-200.0,0.00055849,120]
[340868042,1729963846124,-156.77,0.00055941,2]
[340868043,1729963846133,-4196.6384069,0.00056,120]
[340868044,1729963846143,-7456.37639446,0.0005609,12]
[340868045,1729963846153,-14006.36288551,0.000561,120]
[340868046,1729963846162,-2693.85452621,0.000561,120]
[340868047,1729963846172,-250.0,0.00056311,120]
[340868049,1729963846181,-238.34,0.00056311,30]
[340868051,1729963846191,-280.34,0.00056484,2]
[340868052,1729963846200,-800.0,0.00057174,120]
[340868054,1729963846209,-462.56,0.0005796,2]
[340868056,1729963846219,-160964.53670504,0.00058,30]
[340868058,1729963846228,-151.0,0.00058,120]
[340868060,1729963846238,-151.0,0.00058,120]
[340868062,1729963846247,-151.0,0.00058,120]
[340868064,1729963846256,-151.0,0.00058,120]
[340868066,1729963846268,-1453.385226,0.00058,120]
[340868068,1729963846277,-1453.385226,0.00058,120]
[340868070,1729963846287,-151.0,0.00058,120]
[340868072,1729963846295,-14912.7527889,0.0005887,13]
[340868074,1729963846305,-29255.19508788,0.0005888,2]
[340868076,1729963846313,-650.00161027,0.00059,30]
[340868078,1729963846322,-213.45625357,0.000596,120]
[340868080,1729963846332,-1000.0,0.0005977,30]
[340868082,1729963846341,-500.0,0.0005977,30]
[340868084,1729963846351,-3541.5505,0.00059889,2]
[340868085,1729963846360,-1000.0,0.0005997,30]
[340868087,1729963846369,-500.0,0.0005997,30]
[340868089,1729963846379,-1760.12635708,0.00059989,30]
[340868091,1729963846388,-22369.1291834,0.0005999,14]
[340868093,1729963846398,-40380.5118457,0.0006,120]
[340868095,1729963846407,-1128.0,0.0006,120]
[340868097,1729963846416,-462.56,0.00060224,2]
[340868099,1729963846426,-7456.37639446,0.00060264,14]
[340868101,1729963846435,-151.0,0.00060264,120]
[340868103,1729963846444,-152.879223,0.00060264,120]
[340868105,1729963846454,-1453.385226,0.00060264,120]